fUST/lending_fUST_20260613
["ID","MTS","AMOUNT","RATE_DAILY","PERIOD"]
[424933253,1781293842000,-500.0,0.00035616,18]
[424933263,1781293842000,-151.0,0.00035616,7]
[424933256,1781293842000,-500.0,0.00035616,18]
[424933262,1781293842000,-151.0,0.00035616,7]
[424933258,1781293842000,-500.0,0.00035616,18]
[424933260,1781293842000,-500.0,0.00035616,18]
[424933252,1781293842000,-1899.82,0.00035616,18]
[424933251,1781293842000,-500.0,0.00035616,18]
[424933257,1781293842000,-502.23553781,0.00035616,18]
[424933255,1781293842000,-1603.16,0.00035616,18]
[424933291,1781293842000,-521.35,0.00035616,18]
[424933361,1781293842000,-4949.76,0.00035616,18]
[424933298,1781293842000,-260.88206898,0.00035616,18]
[424933340,1781293842000,-500.0,0.00035616,18]
[424933339,1781293842000,-1718.51,0.00035616,18]
[424933332,1781293842000,-500.0,0.00035616,18]
[424933338,1781293842000,-500.0,0.00035616,18]
[424933336,1781293842000,-500.0,0.00035616,18]
[424933333,1781293842000,-615.78,0.00035616,18]
[424933341,1781293842000,-541.79405749,0.00035616,18]
[424933337,1781293842000,-500.0,0.00035616,18]
[424933342,1781293842000,-500.0,0.00035616,18]
[424933355,1781293842000,-502.94676471,0.00035616,18]
[424933354,1781293842000,-501.41456382,0.00035616,18]
[424933344,1781293842000,-500.0,0.00035616,18]
[424933346,1781293842000,-500.0,0.00035616,14]
[424933349,1781293842000,-500.0,0.00035616,18]
[424933347,1781293842000,-500.27132133,0.00035616,18]
[424933348,1781293842000,-161.01662071,0.00035616,18]
[424933343,1781293842000,-500.0,0.00035616,2]
[424933345,1781293842000,-500.0,0.00035616,18]
[424933353,1781293842000,-3944.89,0.00035616,18]
[424933351,1781293842000,-501.00455235,0.00035616,18]
[424933352,1781293842000,-500.0,0.00035616,18]
[424933356,1781293842000,-500.0,0.00035616,18]
[424933363,1781293842000,-500.0,0.00035616,18]
[424933357,1781293842000,-500.0,0.00035616,18]
[424933358,1781293842000,-500.0,0.00035616,18]
[424933359,1781293842000,-500.0,0.00035616,18]
[424933360,1781293842000,-1780.65,0.00035616,18]
[424933362,1781293842000,-500.0,0.00035616,18]
[424933290,1781293842000,-502.65579752,0.00035616,18]
[424933334,1781293842000,-500.0,0.00035616,18]
[424933335,1781293842000,-1886.27,0.00035616,11]
[424933350,1781293842000,-500.0,0.00035616,18]
[424933331,1781293842000,-501.40987329,0.00035616,18]
[424933297,1781293842000,-500.0,0.00035616,18]
[424933330,1781293842000,-500.0,0.00035616,18]
[424933295,1781293842000,-500.0,0.00035616,18]
[424933303,1781293842000,-192.427952,0.00035616,7]
[424933309,1781293842000,-500.0,0.00035616,18]
[424933304,1781293842000,-502.3695179,0.00035616,18]
[424933306,1781293842000,-397.06856014,0.00035616,18]
[424933310,1781293842000,-502.53239215,0.00035616,18]
[424933307,1781293842000,-907.86,0.00035616,18]
[424933305,1781293842000,-502.99080783,0.00035616,18]
[424933312,1781293842000,-500.0,0.00035616,18]
[424933311,1781293842000,-500.0,0.00035616,18]
[424933313,1781293842000,-423.32329675,0.00035616,18]
[424933315,1781293842000,-500.0,0.00035616,18]
[424933314,1781293842000,-501.04189104,0.00035616,18]
[424933308,1781293842000,-500.0,0.00035616,18]
[424933328,1781293842000,-500.0,0.00035616,18]
[424933329,1781293842000,-509.81,0.00035616,18]
[424933317,1781293842000,-500.0,0.00035616,18]
[424933324,1781293842000,-500.0,0.00035616,18]
[424933326,1781293842000,-503.77262068,0.00035616,18]
[424933323,1781293842000,-502.16273112,0.00035616,18]
[424933325,1781293842000,-500.0,0.00035616,18]
[424933321,1781293842000,-500.0,0.00035616,18]
[424933322,1781293842000,-452.7,0.00035616,18]
[424933318,1781293842000,-1183.61,0.00035616,18]
[424933327,1781293842000,-500.0,0.00035616,18]
[424933319,1781293842000,-1159.12,0.00035616,18]
[424933316,1781293842000,-501.75185198,0.00035616,18]
[424933320,1781293842000,-500.0,0.00035616,18]
[424933412,1781293843000,-151.0,0.00035616,7]
[424933399,1781293843000,-500.0,0.00035616,18]
[424933406,1781293843000,-500.0,0.00035616,18]
[424933401,1781293843000,-502.60977958,0.00035616,18]
[424933407,1781293843000,-1284.73,0.00035616,18]
[424933397,1781293843000,-500.0,0.00035616,18]
[424933400,1781293843000,-501.19603192,0.00035616,18]
[424933398,1781293843000,-500.0,0.00035616,18]
[424933404,1781293843000,-1464.46,0.00035616,18]
[424933396,1781293843000,-501.24035216,0.00035616,18]
[424933403,1781293843000,-501.4505137,0.00035616,10]
[424933416,1781293843000,-500.0,0.00035616,18]
[424933408,1781293843000,-500.0,0.00035616,18]
[424933411,1781293843000,-151.0,0.00035616,7]
[424933426,1781293843000,-300.0,0.00035616,120]
[424933410,1781293843000,-501.68107494,0.00035616,18]
[424933414,1781293843000,-501.25292385,0.00035616,18]
[424933419,1781293843000,-1552.29,0.00035616,30]
[424933421,1781293843000,-300.0,0.00035616,120]
[424933415,1781293843000,-503.31579691,0.00035616,18]
[424933422,1781293843000,-300.0,0.00035616,120]
[424933417,1781293843000,-500.0,0.00035616,18]
[424933418,1781293843000,-6703.15,0.00035616,18]
[424933413,1781293843000,-446.56170062,0.00035616,18]
[424933420,1781293843000,-300.0,0.00035616,120]
[424933423,1781293843000,-300.0,0.00035616,120]
[424933425,1781293843000,-300.0,0.00035616,120]
[424933405,1781293843000,-865.54,0.00035616,18]
[424933409,1781293843000,-502.52092568,0.00035616,18]
[424933402,1781293843000,-500.0,0.00035616,18]
[424933366,1781293843000,-559.26,0.00035616,18]
[424933393,1781293843000,-501.22198928,0.00035616,18]
[424933424,1781293843000,-300.0,0.00035616,120]
[424933368,1781293843000,-501.43211589,0.00035616,18]
[424933367,1781293843000,-2648.52,0.00035616,18]
[424933364,1781293843000,-500.0,0.00035616,18]
[424933365,1781293843000,-505.67557945,0.00035616,18]
[424933369,1781293843000,-500.0,0.00035616,18]
[424933371,1781293843000,-3943.96,0.00035616,18]
[424933370,1781293843000,-501.57909265,0.00035616,18]
[424933381,1781293843000,-538.17153644,0.00035616,18]
[424933383,1781293843000,-500.0,0.00035616,18]
[424933375,1781293843000,-500.0,0.00035616,18]
[424933372,1781293843000,-500.0,0.00035616,18]
[424933382,1781293843000,-500.0,0.00035616,18]
[424933374,1781293843000,-500.0,0.00035616,18]
[424933394,1781293843000,-500.0,0.00035616,18]
[424933373,1781293843000,-1170.83,0.00035616,18]
[424933377,1781293843000,-575.66726176,0.00035616,18]
[424933379,1781293843000,-500.0,0.00035616,18]
[424933378,1781293843000,-9541.66,0.00035616,18]
[424933380,1781293843000,-1220.07,0.00035616,18]
[424933384,1781293843000,-4204.33,0.00035616,18]
[424933391,1781293843000,-500.67094121,0.00035616,18]
[424933385,1781293843000,-500.0,0.00035616,18]
[424933392,1781293843000,-500.0,0.00035616,18]
[424933386,1781293843000,-500.0,0.00035616,18]
[424933390,1781293843000,-2491.97,0.00035616,18]
[424933387,1781293843000,-500.0,0.00035616,18]
[424933388,1781293843000,-500.74614868,0.00035616,18]
[424933389,1781293843000,-500.0,0.00035616,18]
[424933395,1781293843000,-501.80046495,0.00035616,18]
[424933376,1781293843000,-500.0,0.00035616,18]
[424933427,1781293843000,-300.0,0.00035616,120]
[424933435,1781293843000,-300.0,0.00035616,120]
[424933432,1781293843000,-300.0,0.00035616,120]
[424933469,1781293843000,-302.800723,0.00035616,120]
[424933470,1781293843000,-277.51647949,0.00035616,2]
[424933466,1781293843000,-300.0,0.00035616,120]
[424933461,1781293843000,-300.0,0.00035616,120]
[424933467,1781293843000,-300.0,0.00035616,120]
[424933468,1781293843000,-300.0,0.00035616,120]
[424933465,1781293843000,-300.0,0.00035616,120]
[424933471,1781293843000,-768.30596799,0.0003562,120]
[424933472,1781293843000,-151.0,0.000357,16]
[424933473,1781293843000,-151.0,0.000357,20]
[424933475,1781293843000,-560.34914058,0.00035842,2]
[424933484,1781293843000,-212.25,0.0003589,18]
[424933486,1781293843000,-385.60567471,0.0003589,18]
[424933485,1781293843000,-500.0,0.0003589,18]
[424933487,1781293843000,-500.0,0.0003589,18]
[424933474,1781293843000,-151.0,0.000358,10]
[424933476,1781293843000,-788.216,0.0003589,18]
[424933477,1781293843000,-500.0,0.0003589,18]
[424933478,1781293843000,-504.01822884,0.0003589,18]
[424933481,1781293843000,-500.0,0.0003589,18]
[424933483,1781293843000,-500.0,0.0003589,18]
[424933482,1781293843000,-500.0,0.0003589,18]
[424933480,1781293843000,-500.0,0.0003589,18]
[424933479,1781293843000,-152.30180357,0.0003589,18]
[424933488,1781293843000,-500.0,0.0003589,18]
[424933491,1781293843000,-500.0,0.0003589,18]
[424933433,1781293843000,-300.0,0.00035616,120]
[424933490,1781293843000,-502.06503534,0.0003589,18]
[424933492,1781293843000,-260.55,0.0003589,18]
[424933464,1781293843000,-300.0,0.00035616,120]
[424933460,1781293843000,-300.0,0.00035616,120]
[424933489,1781293843000,-956.05,0.0003589,18]
[424933463,1781293843000,-300.0,0.00035616,120]
[424933462,1781293843000,-300.0,0.00035616,120]
[424933429,1781293843000,-300.0,0.00035616,120]
[424933430,1781293843000,-300.0,0.00035616,120]
[424933428,1781293843000,-300.0,0.00035616,120]
[424933431,1781293843000,-300.0,0.00035616,120]
[424933436,1781293843000,-300.0,0.00035616,120]
[424933440,1781293843000,-300.0,0.00035616,120]
[424933441,1781293843000,-300.0,0.00035616,120]
[424933437,1781293843000,-300.0,0.00035616,120]
[424933439,1781293843000,-300.0,0.00035616,120]
[424933438,1781293843000,-300.0,0.00035616,120]
[424933443,1781293843000,-300.0,0.00035616,120]
[424933442,1781293843000,-300.0,0.00035616,120]
[424933445,1781293843000,-300.0,0.00035616,120]
[424933434,1781293843000,-300.0,0.00035616,120]
[424933446,1781293843000,-300.0,0.00035616,120]
[424933444,1781293843000,-300.0,0.00035616,120]
[424933454,1781293843000,-300.0,0.00035616,120]
[424933458,1781293843000,-300.0,0.00035616,120]
[424933453,1781293843000,-300.0,0.00035616,120]
[424933459,1781293843000,-300.0,0.00035616,120]
[424933456,1781293843000,-300.0,0.00035616,120]
[424933455,1781293843000,-300.0,0.00035616,120]
[424933452,1781293843000,-300.0,0.00035616,120]
[424933447,1781293843000,-300.0,0.00035616,120]
[424933448,1781293843000,-300.0,0.00035616,120]
[424933457,1781293843000,-300.0,0.00035616,120]
[424933450,1781293843000,-300.0,0.00035616,120]
[424933451,1781293843000,-300.0,0.00035616,120]
[424933449,1781293843000,-300.0,0.00035616,120]
[424933524,1781293844000,-500.0,0.0003589,18]
[424933552,1781293844000,-503.22371619,0.0003589,18]
[424933526,1781293844000,-998.37,0.0003589,18]
[424933528,1781293844000,-500.0,0.0003589,18]
[424933530,1781293844000,-676.5,0.0003589,18]
[424933535,1781293844000,-500.0,0.0003589,18]
[424933533,1781293844000,-501.25887279,0.0003589,18]
[424933525,1781293844000,-500.0,0.0003589,18]
[424933534,1781293844000,-500.0,0.0003589,18]
[424933527,1781293844000,-500.0,0.0003589,6]
[424933532,1781293844000,-500.0,0.0003589,18]
[424933529,1781293844000,-675.52,0.0003589,18]
[424933541,1781293844000,-500.0,0.0003589,18]
[424933538,1781293844000,-500.0,0.0003589,18]
[424933537,1781293844000,-1778.04,0.0003589,18]
[424933549,1781293844000,-576.4,0.0003589,18]
[424933543,1781293844000,-205.83,0.0003589,18]
[424933542,1781293844000,-745.3,0.0003589,18]
[424933539,1781293844000,-500.0,0.0003589,18]
[424933540,1781293844000,-427.31,0.0003589,18]
[424933545,1781293844000,-500.0,0.0003589,18]
[424933544,1781293844000,-304.21,0.0003589,18]
[424933546,1781293844000,-500.0,0.0003589,18]
[424933547,1781293844000,-500.0,0.0003589,18]
[424933519,1781293844000,-502.29576919,0.0003589,18]
[424933536,1781293844000,-234.36443428,0.0003589,18]
[424933521,1781293844000,-502.21377224,0.0003589,18]
[424933514,1781293844000,-2404.9,0.0003589,18]
[424933518,1781293844000,-501.35435574,0.0003589,18]
[424933495,1781293844000,-500.0,0.0003589,18]
[424933494,1781293844000,-307.06,0.0003589,18]
[424933498,1781293844000,-500.0,0.0003589,18]
[424933493,1781293844000,-500.0,0.0003589,18]
[424933496,1781293844000,-500.0,0.0003589,18]
[424933500,1781293844000,-580.38,0.0003589,18]
[424933499,1781293844000,-895.34,0.0003589,18]
[424933497,1781293844000,-500.0,0.0003589,18]
[424933502,1781293844000,-503.95674374,0.0003589,18]
[424933501,1781293844000,-500.0,0.0003589,18]
[424933513,1781293844000,-500.0,0.0003589,18]
[424933504,1781293844000,-500.0,0.0003589,18]
[424933517,1781293844000,-802.02,0.0003589,18]
[424933503,1781293844000,-460.5569888,0.0003589,18]
[424933515,1781293844000,-503.6677268,0.0003589,18]
[424933508,1781293844000,-1116.24,0.0003589,18]
[424933510,1781293844000,-834.02,0.0003589,18]
[424933507,1781293844000,-502.12624323,0.0003589,18]
[424933505,1781293844000,-500.0,0.0003589,18]
[424933506,1781293844000,-503.25084342,0.0003589,18]
[424933509,1781293844000,-500.0,0.0003589,18]
[424933511,1781293844000,-500.0,0.0003589,18]
[424933516,1781293844000,-503.56794363,0.0003589,18]
[424933520,1781293844000,-1809.21,0.0003589,18]
[424933522,1781293844000,-557.39,0.0003589,18]
[424933523,1781293844000,-500.0,0.0003589,18]
[424933512,1781293844000,-500.0,0.0003589,18]
[424933550,1781293844000,-502.85543436,0.0003589,7]
[424933531,1781293844000,-836.47,0.0003589,18]
[424933551,1781293844000,-189.17,0.0003589,18]
[424933582,1781293844000,-503.21859593,0.0003589,18]
[424933587,1781293844000,-502.82402678,0.0003589,18]
[424933586,1781293844000,-607.57651886,0.0003589,18]
[424933589,1781293844000,-151.0,0.0003589,7]
[424933592,1781293844000,-500.0,0.0003589,18]
[424933591,1781293844000,-535.92,0.0003589,18]
[424933581,1781293844000,-500.0,0.0003589,18]
[424933590,1781293844000,-151.0,0.0003589,7]
[424933593,1781293844000,-1339.13,0.0003589,18]
[424933595,1781293844000,-1235.93,0.0003589,18]
[424933606,1781293844000,-192.427952,0.0003589,7]
[424933605,1781293844000,-500.0,0.0003589,18]
[424933594,1781293844000,-500.0,0.0003589,2]
[424933599,1781293844000,-633.13,0.0003589,18]
[424933598,1781293844000,-2500.46,0.0003589,18]
[424933602,1781293844000,-500.0,0.0003589,18]
[424933596,1781293844000,-192.427952,0.0003589,7]
[424933601,1781293844000,-192.427952,0.0003589,7]
[424933600,1781293844000,-192.427952,0.0003589,7]
[424933597,1781293844000,-192.427952,0.0003589,7]
[424933603,1781293844000,-192.427952,0.0003589,7]
[424933604,1781293844000,-192.427952,0.0003589,7]
[424933609,1781293844000,-500.0,0.0003589,18]
[424933607,1781293844000,-192.427944,0.0003589,7]
[424933610,1781293844000,-500.0,0.0003589,18]
[424933608,1781293844000,-907.86,0.0003589,18]
[424933553,1781293844000,-207.71,0.0003589,18]
[424933585,1781293844000,-503.67534325,0.0003589,18]
[424933588,1781293844000,-736.96,0.0003589,18]
[424933548,1781293844000,-503.37121185,0.0003589,18]
[424933584,1781293844000,-1603.16,0.0003589,18]
[424933556,1781293844000,-504.34202484,0.0003589,18]
[424933562,1781293844000,-500.0,0.0003589,18]
[424933554,1781293844000,-500.0,0.0003589,18]
[424933559,1781293844000,-502.25037702,0.0003589,18]
[424933560,1781293844000,-550.49,0.0003589,18]
[424933557,1781293844000,-500.0,0.0003589,18]
[424933555,1781293844000,-500.0,0.0003589,18]
[424933563,1781293844000,-151.0,0.0003589,7]
[424933561,1781293844000,-1110.0,0.0003589,18]
[424933564,1781293844000,-1544.44,0.0003589,18]
[424933572,1781293844000,-500.0,0.0003589,18]
[424933558,1781293844000,-659.19,0.0003589,18]
[424933574,1781293844000,-228.13298398,0.0003589,18]
[424933583,1781293844000,-1899.82,0.0003589,18]
[424933568,1781293844000,-500.0,0.0003589,18]
[424933575,1781293844000,-9686.73691689,0.0003589,18]
[424933577,1781293844000,-625.96820283,0.00032727,2]
[424933578,1781293844000,-5414.90294279,0.0003589,18]
[424933579,1781293844000,-565.79812367,0.0003589,18]
[424933576,1781293844000,-6332.39014032,0.0003589,18]
[424933570,1781293844000,-500.0,0.0003589,18]
[424933580,1781293844000,-500.0,0.0003589,18]
[424933571,1781293844000,-2983.01,0.0003589,18]
[424933565,1781293844000,-151.0,0.0003589,7]
[424933573,1781293844000,-500.0,0.0003589,18]
[424933566,1781293844000,-151.0,0.0003589,7]
[424933567,1781293844000,-533.47,0.0003589,18]
[424933569,1781293844000,-775.39,0.0003589,18]
[424933622,1781293845000,-500.0,0.0003589,18]
[424933614,1781293845000,-500.0,0.0003589,18]
[424933618,1781293845000,-1886.27,0.0003589,11]
[424933615,1781293845000,-500.0,0.0003589,18]
[424933611,1781293845000,-1183.61,0.0003589,18]
[424933620,1781293845000,-500.0,0.0003589,2]
[424933613,1781293845000,-500.0,0.0003589,18]
[424933617,1781293845000,-500.0,0.0003589,18]
[424933612,1781293845000,-1159.12,0.0003589,18]
[424933621,1781293845000,-500.0,0.0003589,14]
[424933619,1781293845000,-1718.51,0.0003589,18]
[424933632,1781293845000,-500.0,0.0003589,18]
[424933616,1781293845000,-509.81,0.0003589,18]
[424933623,1781293845000,-165.32213288,0.0003589,18]
[424933634,1781293845000,-590.08139942,0.0003589,18]
[424933635,1781293845000,-3182.90680803,0.0003589,18]
[424933626,1781293845000,-500.0,0.0003589,18]
[424933629,1781293845000,-4949.76,0.0003589,18]
[424933627,1781293845000,-500.0,0.0003589,18]
[424933628,1781293845000,-1780.65,0.0003589,18]
[424933636,1781293845000,-618.49406209,0.0003589,18]
[424933624,1781293845000,-500.0,0.0003589,18]
[424933631,1781293845000,-365.80405162,0.0003589,18]
[424933625,1781293845000,-3944.89,0.0003589,18]
[424933630,1781293845000,-500.0,0.0003589,18]
[424933633,1781293845000,-2648.52,0.0003589,18]
[424933638,1781293846000,-625.96820283,0.00035118,2]
[424933639,1781293846000,-8446.91811016,0.00035616,18]
[424933637,1781293846000,-250.0,0.00026778,2]
[424933703,1781294051000,5000.0,0.00024658,30]
[424933713,1781294059000,5000.0,0.00024658,30]
[424933733,1781294472000,-686.677406,0.00011385,9]
[424933817,1781295032000,-3614.14654064,0.00011385,2]
[424933867,1781295039000,-300.0,0.00023558,10]
[424933869,1781295039000,-300.0,0.00023558,10]
[424933870,1781295039000,-300.0,0.00023558,10]
[424933866,1781295039000,-300.0,0.00023558,10]
[424933865,1781295039000,-300.0,0.00023558,10]
[424933864,1781295039000,-300.0,0.00023558,10]
[424933862,1781295039000,-300.0,0.00023558,10]
[424933863,1781295039000,-300.0,0.00023558,10]
[424933861,1781295039000,-220.534716,0.00023406,2]
[424933860,1781295039000,-7256.2426719,0.00023313,2]
[424933857,1781295039000,-250.0,0.00015043,2]
[424933858,1781295039000,-210.78298607,0.00022667,2]
[424933855,1781295039000,-2478.2583076,0.000115,2]
[424933856,1781295039000,-1946.21351208,0.000125,2]
[424933859,1781295039000,-570.87990805,0.00022997,2]
[424933868,1781295039000,-300.0,0.00023558,10]
[424933873,1781295039000,-300.0,0.00023558,10]
[424933885,1781295039000,-877.49900791,0.00024859,2]
[424933872,1781295039000,-300.0,0.00023558,10]
[424933890,1781295039000,-500.0,0.00024958,2]
[424933888,1781295039000,-500.0,0.00024958,2]
[424933887,1781295039000,-500.0,0.00024958,2]
[424933889,1781295039000,-500.0,0.00024958,2]
[424933886,1781295039000,-500.0,0.00024958,2]
[424933881,1781295039000,-3823.25034363,0.00024218,2]
[424933883,1781295039000,-363.413689,0.00024218,2]
[424933882,1781295039000,-1820.77052227,0.00024218,2]
[424933884,1781295039000,-229.81386453,0.00024585,2]
[424933879,1781295039000,-600.0,0.00023558,10]
[424933877,1781295039000,-300.0,0.00023558,10]
[424933875,1781295039000,-300.0,0.00023558,10]
[424933874,1781295039000,-300.0,0.00023558,10]
[424933871,1781295039000,-300.0,0.00023558,10]
[424933880,1781295039000,-807.6061,0.000237,2]
[424933921,1781295040000,-500.0,0.00024958,2]
[424933919,1781295040000,-500.0,0.00024958,2]
[424933937,1781295040000,-366.8010386,0.00024959,2]
[424933924,1781295040000,-500.0,0.00024958,2]
[424933923,1781295040000,-500.0,0.00024958,2]
[424933917,1781295040000,-500.0,0.00024958,2]
[424933918,1781295040000,-500.0,0.00024958,2]
[424933916,1781295040000,-211.9106977,0.00024958,2]
[424933920,1781295040000,-500.0,0.00024958,2]
[424933929,1781295040000,-500.0,0.00024958,2]
[424933925,1781295040000,-500.0,0.00024958,2]
[424933926,1781295040000,-500.0,0.00024958,2]
[424933928,1781295040000,-500.0,0.00024958,2]
[424933931,1781295040000,-500.0,0.00024958,2]
[424933930,1781295040000,-500.0,0.00024958,2]
[424933934,1781295040000,-500.0,0.00024958,2]
[424933922,1781295040000,-500.0,0.00024958,2]
[424933935,1781295040000,-500.0,0.00024958,2]
[424933932,1781295040000,-500.0,0.00024958,2]
[424933936,1781295040000,-500.0,0.00024958,2]
[424933927,1781295040000,-500.0,0.00024958,2]
[424933915,1781295040000,-500.0,0.00024958,2]
[424933909,1781295040000,-500.0,0.00024958,2]
[424933913,1781295040000,-500.0,0.00024958,2]
[424933895,1781295040000,-500.0,0.00024958,2]
[424933892,1781295040000,-500.0,0.00024958,2]
[424933894,1781295040000,-500.0,0.00024958,2]
[424933891,1781295040000,-500.0,0.00024958,2]
[424933893,1781295040000,-500.0,0.00024958,2]
[424933896,1781295040000,-500.0,0.00024958,2]
[424933897,1781295040000,-500.0,0.00024958,2]
[424933899,1781295040000,-500.0,0.00024958,2]
[424933898,1781295040000,-500.0,0.00024958,2]
[424933900,1781295040000,-500.0,0.00024958,2]
[424933901,1781295040000,-336.23747864,0.00024958,2]
[424933903,1781295040000,-500.0,0.00024958,2]
[424933902,1781295040000,-500.0,0.00024958,2]
[424933907,1781295040000,-500.0,0.00024958,2]
[424933904,1781295040000,-500.0,0.00024958,2]
[424933910,1781295040000,-500.0,0.00024958,2]
[424933908,1781295040000,-500.0,0.00024958,2]
[424933905,1781295040000,-500.0,0.00024958,2]
[424933912,1781295040000,-500.0,0.00024958,2]
[424933914,1781295040000,-500.0,0.00024958,2]
[424933933,1781295040000,-500.0,0.00024958,2]
[424933906,1781295040000,-500.0,0.00024958,2]
[424933941,1781295040000,-351.26900113,0.00025045,2]
[424933964,1781295040000,-582.6241377,0.00027898,2]
[424933966,1781295040000,-582.6241377,0.00027898,2]
[424933974,1781295040000,-582.6241377,0.00027898,2]
[424933968,1781295040000,-582.6241377,0.00027898,2]
[424933969,1781295040000,-582.6241377,0.00027898,2]
[424933971,1781295040000,-582.6241377,0.00027898,2]
[424933967,1781295040000,-582.6241377,0.00027898,2]
[424933972,1781295040000,-582.6241377,0.00027898,2]
[424933970,1781295040000,-582.6241377,0.00027898,2]
[424933973,1781295040000,-582.6241377,0.00027898,2]
[424933975,1781295040000,-582.6241377,0.00027898,2]
[424933976,1781295040000,-582.6241377,0.00027898,2]
[424933978,1781295040000,-582.6241377,0.00027898,2]
[424933977,1781295040000,-582.6241377,0.00027898,2]
[424933979,1781295040000,-582.6241377,0.00027898,2]
[424933981,1781295040000,-35387.70465493,0.00027899,2]
[424933980,1781295040000,-1072.04436474,0.00027899,2]
[424933982,1781295040000,-747.69114452,0.00027899,2]
[424933984,1781295040000,-967636.96470858,0.00027899,2]
[424933983,1781295040000,-43748.12847055,0.00027899,2]
[424933938,1781295040000,-347.6390407,0.00024959,2]
[424933965,1781295040000,-582.6241377,0.00027898,2]
[424933963,1781295040000,-582.6241377,0.00027898,2]
[424933911,1781295040000,-354.38000428,0.00024958,2]
[424933939,1781295040000,-348.20003433,0.00024959,2]
[424933962,1781295040000,-370.89518789,0.00027898,2]
[424933940,1781295040000,-459.62772905,0.00024959,2]
[424933942,1781295040000,-358.85305102,0.00025045,2]
[424933948,1781295040000,-801.041611,0.0002557,2]
[424933947,1781295040000,-445.60247864,0.00025045,2]
[424933945,1781295040000,-300.38649614,0.00025045,2]
[424933943,1781295040000,-372.40810884,0.00025045,2]
[424933946,1781295040000,-352.69710121,0.00025045,2]
[424933950,1781295040000,-417.15472785,0.00026482,2]
[424933949,1781295040000,-720.0,0.00025914,10]
[424933944,1781295040000,-307.43151305,0.00025045,2]
[424933951,1781295040000,-801.041611,0.00026646,2]
[424933953,1781295040000,-877.49900791,0.00027008,2]
[424933957,1781295040000,-151.5,0.00027723,2]
[424933961,1781295040000,-753.22562966,0.00027799,2]
[424933958,1781295040000,-151.5,0.00027723,2]
[424933955,1781295040000,-801.041611,0.00027722,2]
[424933954,1781295040000,-155.69236386,0.000277,2]
[424933960,1781295040000,-215.04220334,0.00027723,2]
[424933959,1781295040000,-151.5,0.00027723,2]
[424933956,1781295040000,-151.5,0.00027723,2]
[424933952,1781295040000,-212.737,0.00026646,14]
[424933990,1781295043000,-304.0,0.00011385,2]
[424933995,1781295046000,-3779.07619392,0.00011385,2]
[424933994,1781295046000,-552.18136119,0.00011385,2]
[424933997,1781295046000,-597.18974115,0.00027898,2]
[424933996,1781295046000,-505.5912567,0.0002694,30]
[424933998,1781295046000,-190.2998329,0.00027898,2]
[424934416,1781296232000,-73.33785533,0.00020529,2]
[424934415,1781296232000,-201.72599459,0.00018822,3]
[424934419,1781296232000,-4848.0,0.00020529,2]
[424934421,1781296232000,-252.59417666,0.0002487,2]
[424934424,1781296232000,-376.73687797,0.00026083,30]
[424934420,1781296232000,-78.66214467,0.00020529,2]
[424934422,1781296232000,-257.650428,0.00026039,7]
[424934423,1781296232000,-623.26312203,0.00026083,30]
[424934429,1781296232000,-736.37028133,0.00027599,2]
[424934428,1781296232000,-155.0,0.00027589,25]